fUSD/lending_fUSD_20250804
["ID","MTS","AMOUNT","RATE_DAILY","PERIOD"]
[377293575,1754323844272,-1000.0,0.00041212,10]
[377293577,1754323844282,-1000.0,0.00041212,10]
[377293579,1754323844291,-500.28707117,0.00041212,2]
[377293581,1754323844300,-600.0,0.00041252,2]
[377293583,1754323844314,-600.0,0.00041252,2]
[377293585,1754323844324,-600.0,0.00041252,2]
[377293587,1754323844334,-549.72793957,0.00041252,2]
[377293589,1754323844343,-1854.41,0.00041267,2]
[377293591,1754323844354,-70294.8671563,0.00041267,3]
[377293593,1754323844364,-1690.35349223,0.00041267,2]
[377293595,1754323844373,-500.0,0.00041273,10]
[377293597,1754323844386,-500.0,0.00041273,10]
[377293599,1754323844396,-500.0,0.00041273,10]
[377293601,1754323844406,-402.1384627,0.00041273,10]
[377293603,1754323844415,-500.0,0.00041273,10]
[377293605,1754323844425,-500.0,0.00041273,10]
[377293607,1754323844434,-500.0,0.00041273,10]
[377293609,1754323844443,-500.0,0.00041273,10]
[377293612,1754323844453,-1000.0,0.00041276,2]
[377293613,1754323844463,-1000.0,0.00041276,2]
[377293615,1754323844473,-238268.74865333,0.00041276,2]
[377293618,1754323844485,-9854.1123537,0.00041277,2]
[377293620,1754323844494,-115215.00956179,0.00041277,2]
[377293622,1754323844509,-12420.89043821,0.00041277,2]
[377293624,1754323844519,-1000.0,0.00041277,2]
[377293626,1754323844529,-5000.0,0.00041277,120]
[377293628,1754323844539,-793.08,0.00041277,120]
[377293630,1754323844549,-1402.65,0.00041277,2]
[377293632,1754323844559,-320.15,0.00041277,120]
[377293634,1754323844568,-1692.12,0.00041277,2]
[377293636,1754323844577,-516.54,0.00041277,2]
[377293638,1754323844587,-481.8,0.00041277,120]
[377293640,1754323844596,-23900.0,0.00041277,2]
[377293642,1754323844606,-500.0,0.00041277,2]
[377293644,1754323844615,-250.0,0.00041277,120]
[377293646,1754323844625,-24795.13530159,0.00041277,2]
[377293665,1754323844798,-247.41333416,0.00031932,2]
[377293667,1754323844808,-209.06102706,0.00037443,15]
[377293669,1754323844817,-3162.11469841,0.00041277,2]
[377293671,1754323844828,-8078.92451882,0.00041277,2]
[377293835,1754323846543,-799.77640652,0.00028408,2]
[377293837,1754323846555,-570.39224271,0.00028408,2]
[377293839,1754323846567,-371.16721057,0.00028408,2]
[377293841,1754323846576,-735.02159535,0.00041277,2]
[377293843,1754323846588,-2483.29388583,0.00041277,2]
[377293845,1754323846597,-1000.0,0.00041277,2]
[377293847,1754323846607,-8693.87,0.00041277,2]
[377293849,1754323846617,-5290.54,0.00041277,36]
[377293851,1754323846627,-745.91,0.00041277,120]
[377293853,1754323846636,-666.0,0.00041277,3]
[377293855,1754323846647,-17904.3439998,0.00041289,15]
[377293857,1754323846656,-962.0755203,0.00041321,120]
[377293859,1754323846665,-211.425049,0.00041393,2]
[377293861,1754323846675,-457.2201239,0.00041393,2]
[377293863,1754323846684,-841.59890878,0.00041393,2]
[377293865,1754323846693,-160.0,0.00041395,2]
[377293867,1754323846703,-284.27816202,0.00041483,28]
[377293869,1754323846714,-460.27,0.00041515,2]
[377293871,1754323846724,-1500.0,0.00041651,10]
[377293873,1754323846734,-1500.0,0.0004176,10]
[377293875,1754323846745,-1500.93404685,0.0004176,10]
[377293877,1754323846755,-1500.0,0.0004176,10]
[377293879,1754323846765,-3439.03665626,0.00041804,2]
[377293881,1754323846774,-23431.6223854,0.00041811,3]
[377293883,1754323846783,-693.36475751,0.00041821,10]
[377293884,1754323846793,-380.51480873,0.00041821,10]
[377293886,1754323846802,-752.4938488,0.00041821,10]
[377293889,1754323846814,-1000.0,0.00041821,10]
[377293890,1754323846823,-1000.0,0.00041821,10]
[377293892,1754323846832,-2500.0,0.00042111,10]
[377293894,1754323846842,-962.0755203,0.00042178,120]
[377293896,1754323846852,-12547.4227709,0.00042257,15]
[377293898,1754323846861,-2000.0,0.00042308,10]
[377293901,1754323846872,-2000.0,0.00042308,10]
[377293903,1754323846881,-588.20564432,0.00042368,10]
[377293904,1754323846891,-513.80652929,0.00042368,10]
[377293907,1754323846900,-287.24012987,0.00042679,15]
[377293908,1754323846909,-543.8,0.00042719,120]
[377293911,1754323846919,-540.91261759,0.00043,30]
[377293913,1754323846929,-160.0,0.00043,44]
[377293915,1754323846939,-160.0,0.00043,43]
[377293917,1754323846949,-160.0,0.00043,53]
[377293919,1754323846959,-160.0,0.00043,7]
[377293920,1754323846968,-160.0,0.00043,10]
[377293923,1754323846977,-160.0,0.00043,15]
[377293924,1754323846987,-170.0,0.00043,29]
[377293927,1754323846997,-170.0,0.00043,89]
[377293929,1754323847007,-962.0755203,0.00043036,120]
[377293931,1754323847017,-17904.3439998,0.00043211,15]
[377293933,1754323847028,-766.61104042,0.00043283,19]
[377293935,1754323847037,-12547.4227709,0.00043338,15]
[377293936,1754323847047,-516.54,0.00043341,2]
[377293938,1754323847056,-165.62,0.00043727,2]
[377293940,1754323847066,-202.7,0.00043836,120]
[377293942,1754323847076,-508.30610558,0.00043881,2]
[377293945,1754323847086,-962.0755203,0.00043894,120]
[377293948,1754323847095,-287.24012987,0.00044181,15]
[377293951,1754323847105,-151.0,0.00044329,120]
[377293954,1754323847115,-12547.4227709,0.00044418,15]
[377293957,1754323847124,-543.8,0.00044449,120]
[377293960,1754323847134,-150.0,0.0004453,30]
[377293963,1754323847144,-359.08,0.0004453,30]
[377293966,1754323847154,-165.39,0.0004453,30]
[377293969,1754323847164,-150.0,0.0004453,30]
[377293972,1754323847173,-359.08,0.0004453,30]
[377293975,1754323847183,-165.39,0.0004453,30]
[377293978,1754323847193,-165.39,0.0004453,30]
[377293981,1754323847202,-358.63,0.0004453,30]
[377293984,1754323847211,-157.04,0.0004453,30]
[377293987,1754323847221,-23431.6223854,0.00044595,3]
[377293990,1754323847231,-175.0,0.00044605,7]
[377293993,1754323847240,-962.0755203,0.00044752,120]
[377293996,1754323847250,-155.24603399,0.00044973,10]
[377293999,1754323847262,-1000.0,0.00045,120]
[377294002,1754323847271,-1000.0,0.00045,30]
[377294005,1754323847281,-1000.0,0.00045,30]
[377294007,1754323847290,-1000.0,0.00045,30]
[377294009,1754323847300,-1000.0,0.00045,30]
[377294011,1754323847314,-571.0,0.00045,30]
[377294013,1754323847323,-165.0,0.00045,29]
[377294015,1754323847333,-165.0,0.00045,39]
[377294017,1754323847342,-153.0,0.00045,120]
[377294019,1754323847352,-447.89,0.00045,30]
[377294021,1754323847362,-2366.75,0.00045,14]
[377294023,1754323847371,-488.59,0.000451,120]
[377294025,1754323847383,-17904.3439998,0.00045133,15]
[377294027,1754323847393,-1111.29094406,0.00045141,51]
[377294029,1754323847404,-825.48,0.000452,120]
[377294031,1754323847413,-825.48,0.000452,120]
[377294033,1754323847424,-1543.90331224,0.00045201,2]
[377294035,1754323847435,-359.08,0.00045382,30]
[377294037,1754323847444,-165.26,0.00045382,30]
[377294039,1754323847454,-172.88,0.00045382,30]
[377294041,1754323847464,-359.08,0.00045382,30]
[377294043,1754323847474,-172.88,0.00045382,30]
[377294045,1754323847483,-359.08,0.00045382,30]
[377294047,1754323847493,-172.88,0.00045382,30]
[377294049,1754323847502,-357.86,0.00045382,30]
[377294051,1754323847513,-766.61104042,0.00045388,22]
[377294053,1754323847522,-319.73,0.00045396,30]
[377294055,1754323847532,-300.0,0.00045396,30]
[377294057,1754323847542,-306.54,0.00045396,30]
[377294059,1754323847551,-150.52,0.00045396,30]
[377294061,1754323847562,-150.0,0.00045396,30]
[377294063,1754323847572,-150.0,0.00045396,30]
[377294065,1754323847582,-150.0,0.00045396,30]
[377294092,1754323847591,-150.0,0.00045396,30]
[377294097,1754323847870,-150.0,0.00045396,30]
[377294099,1754323847881,-150.0,0.00045396,30]
[377294101,1754323847890,-150.0,0.00045396,30]
[377294103,1754323847901,-150.0,0.00045396,30]
[377294105,1754323847911,-516.54,0.00045405,2]
[377294107,1754323847920,-156.12,0.00045432,2]
[377294109,1754323847930,-500.0,0.00045473,10]
[377294111,1754323847940,-500.0,0.00045473,10]
[377294113,1754323847949,-501.79887685,0.00045473,10]
[377294115,1754323847958,-500.0,0.00045473,10]
[377294117,1754323847967,-374.23230166,0.00045473,10]
[377294119,1754323847977,-151.08,0.00045477,2]
[377294121,1754323847986,-520.22546928,0.00045477,7]
[377294122,1754323847995,-140589.734313,0.00045488,3]
[377294124,1754323848005,-102970.650131,0.00045488,3]
[377294126,1754323848017,-841.59890878,0.00045488,3]
[377294128,1754323848027,-12547.4227709,0.00045498,15]
[377294130,1754323848036,-825.63857692,0.000455,120]
[377294132,1754323848047,-825.48,0.000455,120]
[377294134,1754323848058,-962.0755203,0.0004561,120]
[377294136,1754323848068,-200.0,0.00045633,2]
[377294138,1754323848077,-156.12,0.00045659,2]
[377294140,1754323848088,-287.24012987,0.00045683,15]
[377294142,1754323848098,-825.48,0.000457,120]
[377294144,1754323848108,-151.0,0.00045709,120]
[377294146,1754323848118,-825.48,0.000458,120]
[377294148,1754323848127,-156.12,0.00045886,2]
[377294150,1754323848137,-447.89,0.000459,30]
[377294152,1754323848147,-2366.75,0.000459,14]
[377294154,1754323848157,-825.48,0.000459,120]
[377294156,1754323848167,-825.48,0.000459,120]
[377294158,1754323848177,-3073.77,0.00045931,2]
[377294160,1754323848188,-1000.0,0.00046,120]
[377294162,1754323848198,-165.0,0.00046,45]
[377294164,1754323848207,-165.0,0.00046,55]
[377294166,1754323848218,-3000.0,0.00046,120]
[377294168,1754323848228,-488.55,0.00046,120]
[377294170,1754323848237,-17161.7750219,0.00046011,3]
[377294172,1754323848248,-956.5102112,0.00046021,10]
[377294174,1754323848259,-1000.0,0.00046021,10]
[377294176,1754323848268,-325.03090539,0.0004605,10]
[377294178,1754323848278,-825.48,0.000461,120]
[377294180,1754323848289,-553.78459341,0.00046127,10]
[377294182,1754323848299,-501.84839377,0.00046127,10]
[377294184,1754323848312,-179.79893452,0.00046127,10]
[377294186,1754323848322,-500.0,0.00046127,10]
[377294188,1754323848332,-500.0,0.00046127,10]
[377294190,1754323848341,-500.0,0.00046127,10]
[377294192,1754323848352,-246.53,0.00046169,14]
[377294193,1754323848362,-3702.20720101,0.00046175,2]
[377294195,1754323848371,-543.8,0.0004618,120]
[377294197,1754323848381,-825.48,0.000462,120]
[377294200,1754323848391,-153.0,0.000463,120]
[377294201,1754323848401,-500.0,0.0004635,10]
[377294204,1754323848411,-825.48,0.000464,120]
[377294206,1754323848421,-793.08,0.00046437,120]
[377294208,1754323848431,-1000.0,0.00046437,2]
[377294209,1754323848440,-962.0755203,0.00046468,120]
[377294211,1754323848450,-150.0,0.00046474,120]
[377294213,1754323848460,-825.48,0.000465,120]
[377294216,1754323848470,-825.48,0.000465,120]
[377294217,1754323848482,-512.0,0.00046527,10]
[377294219,1754323848492,-23431.6223854,0.00046565,3]
[377294221,1754323848501,-17161.7750219,0.00046565,3]
[377294223,1754323848512,-503.5126455,0.00046568,10]
[377294225,1754323848521,-500.0,0.00046573,10]
[377294227,1754323848531,-500.0,0.00046573,10]
[377294229,1754323848542,-500.0,0.00046573,10]
[377294231,1754323848551,-631.92296558,0.00046573,10]
[377294233,1754323848561,-500.0,0.00046573,10]
[377294235,1754323848571,-500.0,0.00046573,10]
[377294237,1754323848581,-500.0,0.00046573,10]
[377294239,1754323848590,-500.42396906,0.00046573,10]
[377294241,1754323848600,-645.28318935,0.00046573,10]
[377294243,1754323848609,-500.0,0.00046573,10]
[377294245,1754323848619,-500.0,0.00046573,10]
[377294247,1754323848628,-500.0,0.00046573,10]
[377294249,1754323848637,-500.0,0.00046573,10]
[377294251,1754323848646,-1162.18,0.00046575,15]
[377294253,1754323848656,-1162.18,0.00046575,15]
[377294255,1754323848665,-1162.18,0.00046575,15]
[377294257,1754323848675,-1162.18,0.00046575,15]
[377294258,1754323848685,-1162.18,0.00046575,15]
[377294261,1754323848695,-1162.18,0.00046575,15]
[377294262,1754323848704,-1162.18,0.00046575,15]
[377294265,1754323848715,-1162.18,0.00046575,15]
[377294267,1754323848725,-1162.18,0.00046575,15]
[377294268,1754323848735,-1162.18,0.00046575,15]
[377294270,1754323848744,-1162.18,0.00046575,15]
[377294272,1754323848754,-1162.18,0.00046575,15]
[377294274,1754323848765,-1162.18,0.00046575,15]
[377294276,1754323848774,-1162.18,0.00046575,15]
[377294278,1754323848784,-1162.18,0.00046575,15]
[377294280,1754323848793,-1162.18,0.00046575,15]
[377294282,1754323848804,-1162.18,0.00046575,15]
[377294284,1754323848813,-1162.18,0.00046575,15]
[377294286,1754323848824,-1162.18,0.00046575,15]
[377294288,1754323848833,-1162.18,0.00046575,15]
[377294290,1754323848844,-1162.18,0.00046575,15]
[377294292,1754323848854,-1162.18,0.00046575,15]
[377294294,1754323848863,-1162.18,0.00046575,15]
[377294295,1754323848874,-1162.25801889,0.00046575,15]
[377294296,1754323848884,-12547.4227709,0.00046579,15]
[377294297,1754323848893,-17161.7750219,0.0004658,3]
[377294298,1754323848903,-500.0,0.00046593,2]
[377294299,1754323848914,-500.0,0.00046593,2]
[377294300,1754323848924,-500.0,0.00046593,2]
[377294301,1754323848934,-600.0,0.00046593,2]
[377294302,1754323848944,-2000.0,0.000466,2]
[377294303,1754323848954,-1501.0,0.000466,2]
[377294304,1754323848964,-2366.75,0.000466,14]
[377294305,1754323848974,-504.33295698,0.00046675,10]
[377294306,1754323848984,-825.48,0.000467,120]
[377294307,1754323848994,-23431.6223854,0.00046726,3]
[377294308,1754323849003,-301.65,0.00046737,2]
[377294310,1754323849013,-499.99,0.00046737,2]
[377294312,1754323849023,-327.81,0.00046737,2]
[377294314,1754323849033,-8145.36,0.00046737,2]
[377294316,1754323849043,-150.99,0.00046737,2]
[377294318,1754323849053,-18840.9,0.00046737,30]
[377294320,1754323849063,-999.99,0.00046737,2]
[377294322,1754323849073,-9999.99,0.00046737,2]
[377294324,1754323849083,-2213.73,0.00046737,2]
[377294326,1754323849093,-150.99,0.00046737,30]
[377294328,1754323849103,-299.99,0.00046737,120]
[377294330,1754323849113,-5199.07,0.00046737,2]
[377294332,1754323849123,-225.0,0.00046801,120]
[377294334,1754323849133,-160.39630456,0.00046816,14]
[377294336,1754323849143,-1414.02143093,0.00046867,120]
[377294338,1754323849154,-967.18064997,0.00046898,10]
[377294340,1754323849164,-825.48,0.000469,120]
[377294342,1754323849173,-700.0,0.000469,17]
[377294344,1754323849183,-194.06,0.00046994,14]
[377294346,1754323849192,-1000.0,0.00047,120]
[377294348,1754323849202,-2890.0,0.00047,120]
[377294350,1754323849212,-17904.3439998,0.00047056,15]
[377294352,1754323849222,-151.0,0.00047089,120]
[377294354,1754323849232,-512.0,0.00047113,10]
[377294356,1754323849241,-1001.73555645,0.00047121,10]
[377294358,1754323849251,-1000.0,0.00047121,10]
[377294360,1754323849262,-500.46973082,0.00047121,10]
[377294362,1754323849271,-1000.0,0.00047121,10]
[377294364,1754323849282,-1000.0,0.00047121,10]
[377294366,1754323849291,-431.81146785,0.00047121,10]
[377294368,1754323849301,-502.90766093,0.00047121,10]
[377294370,1754323849316,-500.21942331,0.00047121,10]
[377294372,1754323849326,-1000.0,0.00047121,10]
[377294375,1754323849336,-1000.0,0.00047121,10]
[377294377,1754323849347,-5800.0,0.00047122,14]
[377294378,1754323849356,-17161.7750219,0.00047156,3]
[377294381,1754323849366,-10504.6089,0.00047166,120]
[377294383,1754323849376,-287.24012987,0.00047185,15]
[377294385,1754323849388,-23431.6223854,0.00047246,3]
[377294387,1754323849399,-176.51,0.00047247,2]
[377294389,1754323849408,-151.94,0.0004726,120]
[377294391,1754323849418,-500.0,0.00047273,10]
[377294392,1754323849427,-2366.75,0.000473,14]
[377294394,1754323849437,-962.0755203,0.00047326,120]
[377294396,1754323849449,-325.8765279,0.00047438,14]
[377294399,1754323849460,-516.54,0.00047469,2]
[377294401,1754323849471,-316.60064622,0.000475,120]
[377294402,1754323849480,-1037.0,0.000476,2]
[377294404,1754323849493,-153.0,0.000476,120]
[377294406,1754323849504,-17161.7750219,0.00047639,3]
[377294408,1754323849514,-865.0,0.00047659,2]
[377294410,1754323849524,-4137.0,0.00047659,2]
[377294412,1754323849533,-6176.422,0.00047659,2]
[377294414,1754323849543,-21419.0,0.00047659,2]
[377294416,1754323849552,-12547.4227709,0.00047659,15]
[377294418,1754323849562,-500.97030954,0.00047668,10]
[377294421,1754323849571,-1500.0,0.00047668,10]
[377294423,1754323849581,-500.0,0.00047668,10]
[377294424,1754323849591,-1500.0,0.00047668,10]
[377294426,1754323849601,-1500.0,0.00047668,10]
[377294429,1754323849611,-512.0,0.00047699,10]
[377294431,1754323849622,-331.0093,0.000479,2]
[377294433,1754323849631,-543.8,0.0004791,120]
[377294435,1754323849641,-500.0,0.00047945,120]
[377294437,1754323849650,-500.0,0.00047945,120]
[377294439,1754323849660,-500.0,0.00047945,120]
[377294441,1754323849669,-500.0,0.00047945,120]
[377294443,1754323849679,-500.0,0.00047945,120]
[377294445,1754323849689,-500.0,0.00047945,120]
[377294447,1754323849699,-500.0,0.00047945,120]
[377294449,1754323849709,-500.0,0.00047945,120]
[377294451,1754323849719,-500.0,0.00047945,120]
[377294453,1754323849729,-500.0,0.00047945,120]
[377294455,1754323849739,-500.0,0.00047945,120]
[377294457,1754323849749,-230.6,0.00047945,120]
[377294459,1754323849759,-1000.0,0.00047982,14]
[377294461,1754323849769,-1000.0,0.00047992,14]
[377294463,1754323849779,-1020.51,0.00047999,2]
[377294465,1754323849789,-1000.0,0.00048,120]
[377294467,1754323849799,-2150.9045,0.00048,120]
[377294469,1754323849809,-498.73,0.00048,2]
[377294471,1754323849818,-204.0,0.00048,90]
[377294473,1754323849827,-159.49074073,0.00048,120]
[377294475,1754323849837,-2004.61,0.00048,120]
[377294477,1754323849848,-23431.6223854,0.00048161,4]
[377294479,1754323849858,-225.0,0.00048171,120]
[377294481,1754323849867,-17161.7750219,0.00048174,4]
[377294483,1754323849877,-962.0755203,0.00048184,120]
[377294485,1754323849887,-2366.75,0.000482,14]
[377294487,1754323849896,-1500.0,0.00048216,10]
[377294489,1754323849906,-1000.0,0.00048226,14]
[377294491,1754323849916,-512.0,0.00048284,10]
[377294493,1754323849925,-204.0,0.00048356,90]
[377294495,1754323849935,-1000.0,0.00048368,10]
[377294497,1754323849944,-958.10858698,0.000484,32]
[377294499,1754323849954,-2267.89333,0.0004846,42]
[377294501,1754323849963,-151.0,0.00048469,120]
[377294503,1754323849974,-700.0,0.0004847,3]
[377294505,1754323849984,-1300.0,0.0004847,3]
[377294507,1754323849994,-17161.7750219,0.00048479,4]
[377294509,1754323850004,-893.89,0.0004848,120]
[377294511,1754323850015,-2230.13999999,0.0004848,120]
[377294513,1754323850025,-23431.6223854,0.00048489,4]
[377294515,1754323850035,-886.88000001,0.00048493,120]
[377294517,1754323850045,-600.0,0.00048499,18]
[377294519,1754323850054,-600.0,0.00048499,18]
[377294521,1754323850064,-600.0,0.00048499,18]
[377294523,1754323850073,-600.0,0.00048499,18]
[377294525,1754323850083,-600.0,0.00048499,18]
[377294527,1754323850094,-600.0,0.00048499,18]
[377294529,1754323850103,-600.0,0.00048499,18]
[377294531,1754323850113,-600.0,0.00048499,18]
[377294532,1754323850123,-600.0,0.00048499,18]
[377294534,1754323850133,-600.0,0.00048499,18]
[377294536,1754323850143,-600.0,0.00048499,38]
[377294538,1754323850153,-13114.60288351,0.000485,120]
[377294540,1754323850163,-150.0,0.000485,2]
[377294542,1754323850173,-1016.0,0.0004854,2]
[377294545,1754323850183,-158.1654047,0.00048567,24]
[377294547,1754323850192,-305.39721356,0.0004859,120]
[377294549,1754323850202,-404.30966179,0.0004859,120]
[377294551,1754323850212,-1000.0,0.00048625,14]
[377294553,1754323850222,-17161.7750219,0.00048646,4]
[377294555,1754323850231,-23431.6223854,0.00048648,4]
[377294557,1754323850241,-17161.7750219,0.00048648,4]
[377294559,1754323850251,-93726.4895418,0.00048657,4]
[377294561,1754323850261,-102970.650131,0.00048657,4]
[377294563,1754323850271,-23431.6223854,0.0004866,4]
[377294565,1754323850280,-536.23393472,0.00048666,2]
[377294567,1754323850290,-17161.7750219,0.0004867,4]
[377294569,1754323850300,-287.24012987,0.00048686,15]
[377294571,1754323850315,-2267.89333,0.0004869,43]
[377294573,1754323850325,-12547.4227709,0.00048739,15]
[377294575,1754323850334,-1400.0,0.000488,17]
[377294577,1754323850343,-683.435407,0.00048831,2]
[377294579,1754323850354,-23431.6223854,0.00048857,4]
[377294581,1754323850363,-5000.0,0.00048866,120]
[377294583,1754323850374,-324.34568023,0.00048866,30]
[377294585,1754323850385,-512.0,0.0004887,12]
[377294587,1754323850395,-17161.7750219,0.0004887,4]
[377294588,1754323850405,-150.0,0.00048873,10]
[377294590,1754323850414,-1000.0,0.00048882,14]
[377294593,1754323850424,-489.0,0.00048893,7]
[377294595,1754323850434,-2200.0,0.000489,17]
[377294597,1754323850444,-2366.75,0.000489,14]
[377294599,1754323850453,-17161.7750219,0.00048925,4]
[377294601,1754323850463,-34323.5500437,0.00048935,4]
[377294603,1754323850473,-17161.7750219,0.00048936,4]
[377294605,1754323850483,-51485.3250656,0.00048946,4]
[377294607,1754323850493,-300.0,0.00048955,30]
[377294609,1754323850502,-300.0,0.00048955,30]
[377294611,1754323850513,-2267.89333,0.0004896,44]
[377294612,1754323850522,-1000.0,0.00048965,120]
[377294615,1754323850532,-1000.0,0.00048965,120]
[377294617,1754323850542,-1000.0,0.00048965,120]
[377294619,1754323850552,-1000.0,0.00048965,120]
[377294621,1754323850561,-1000.0,0.00048965,120]
[377294623,1754323850571,-1000.0,0.00048965,120]
[377294625,1754323850581,-1000.0,0.00048965,120]
[377294627,1754323850590,-1000.0,0.00048965,120]
[377294629,1754323850599,-1080.76960432,0.00048965,120]
[377294631,1754323850609,-170853.5238333,0.00048965,2]
[377294633,1754323850620,-3972.3951273,0.00048965,2]
[377294635,1754323850629,-6807.8933333,0.00048965,2]
[377294637,1754323850639,-22068.5224168,0.00048966,2]
[377294639,1754323850648,-1000.0,0.00048968,14]
[377294641,1754323850657,-151.01,0.00048971,15]
[377294643,1754323850667,-151.0,0.00048971,15]
[377294645,1754323850677,-151.0,0.00048971,15]
[377294647,1754323850687,-151.0,0.00048971,15]
[377294649,1754323850696,-151.0,0.00048971,15]
[377294651,1754323850706,-151.0,0.00048971,15]
[377294653,1754323850716,-151.0,0.00048971,15]
[377294655,1754323850726,-151.0,0.00048971,15]
[377294657,1754323850736,-151.0,0.00048971,15]
[377294659,1754323850746,-151.0,0.00048971,15]
[377294661,1754323850755,-151.0,0.00048971,15]
[377294663,1754323850766,-156.587,0.00048971,15]
[377294665,1754323850775,-151.0,0.00048971,15]
[377294667,1754323850785,-151.0,0.00048971,15]
[377294669,1754323850795,-151.0,0.00048971,15]
[377294671,1754323850805,-151.0,0.00048971,15]
[377294673,1754323850814,-151.0,0.00048971,15]
[377294675,1754323850824,-151.0,0.00048971,15]
[377294677,1754323850833,-500.0,0.00048971,15]
[377294679,1754323850843,-500.0,0.00048971,15]
[377294681,1754323850852,-500.0,0.00048971,15]
[377294683,1754323850862,-500.0,0.00048971,15]
[377294685,1754323850872,-500.0,0.00048971,15]
[377294687,1754323850882,-300.0,0.00048971,15]
[377294689,1754323850891,-500.0,0.00048971,15]
[377294691,1754323850901,-629.45992341,0.00048971,15]
[377294693,1754323850911,-500.0,0.00048971,15]
[377294695,1754323850920,-500.0,0.00048971,15]
[377294697,1754323850930,-500.0,0.00048971,15]
[377294699,1754323850940,-500.0,0.00048971,15]
[377294701,1754323850951,-500.0,0.00048971,15]
[377294703,1754323850961,-5391.81600769,0.00048971,15]
[377294705,1754323850971,-5591.31319997,0.00048971,15]
[377294707,1754323850982,-5798.19178837,0.00048971,15]
[377294709,1754323850992,-6012.72488454,0.00048971,15]
[377294711,1754323851002,-549.86175839,0.00048971,15]
[377294713,1754323851013,-500.0,0.00048971,15]
[377294715,1754323851023,-500.0,0.00048971,15]
[377294717,1754323851033,-500.0,0.00048971,15]
[377294719,1754323851042,-500.0,0.00048971,15]
[377294721,1754323851051,-500.0,0.00048971,15]
[377294723,1754323851061,-500.0,0.00048971,15]
[377294725,1754323851071,-500.0,0.00048971,15]
[377294727,1754323851081,-500.0,0.00048971,15]
[377294729,1754323851091,-500.0,0.00048971,15]
[377294731,1754323851101,-500.0,0.00048971,15]
[377294733,1754323851111,-500.0,0.00048971,15]
[377294735,1754323851120,-199.5,0.00048971,15]
[377294737,1754323851130,-277.35679052,0.00048971,15]
[377294739,1754323851141,-179.44126233,0.00048971,15]
[377294741,1754323851150,-200.0,0.00048972,7]
[377294743,1754323851160,-200.0,0.00048972,7]
[377294744,1754323851170,-200.0,0.00048972,7]
[377294745,1754323851180,-155.0,0.00048972,14]
[377294746,1754323851189,-205.88065986,0.00048972,14]
[377294747,1754323851199,-153.0,0.00048972,14]
[377294748,1754323851208,-1213.0,0.00048972,14]
[377294749,1754323851218,-1213.0,0.00048972,14]
[377294750,1754323851228,-1213.0,0.00048972,14]
[377294751,1754323851238,-1213.0,0.00048972,14]
[377294752,1754323851248,-1213.0,0.00048972,14]
[377294754,1754323851257,-1213.0,0.00048972,14]
[377294756,1754323851268,-1213.0,0.00048972,14]
[377294758,1754323851277,-1213.0,0.00048972,14]
[377294760,1754323851287,-1213.0,0.00048972,14]
[377294762,1754323851296,-151.0,0.00048972,14]
[377294764,1754323851307,-151.0,0.00048972,14]
[377294766,1754323851318,-151.0,0.00048972,14]
[377294768,1754323851328,-164.11802654,0.00048972,14]
[377294770,1754323851338,-1213.0,0.00048972,14]
[377294772,1754323851347,-1213.0,0.00048972,14]
[377294774,1754323851358,-1213.0,0.00048972,14]
[377294776,1754323851367,-1213.0,0.00048972,14]